Cogmind - Beta 16 *** ADVENTURER MODE // 2025.12.06 @ 12:32:02 Player: Joe Result: Destroyed by Y-45 Defender with Beam Rifle Performance ------------- Evolutions (0) 0 Regions Visited (3) 600 Robots Destroyed (42) 210 Value Destroyed (1027) 1027 Prototype IDs (18) 360 Alien Tech Used (0) 0 Bonus (0) 0 TOTAL SCORE: 2197 Bonus ------- None Cogmind --------- Core Integrity 0/250 Matter 163/300 Energy 125/125 System Corruption 1% Temperature Cool (9) Movement Walking (190) Ox1 Location -10/Subcaves Parts ------- > --- POWER (1) -------- Light Ion Engine > --- PROPULSION (2) --- Aluminum Leg Aluminum Leg > --- UTILITY (2) ------ Large Storage Unit Terrain Scanner > --- WEAPON (2) ------- Light Assault Rifle Improved Light Cannon > --- INVENTORY (15) --- Subdweller Power Source Light Nuclear Core Experimental Sensor Array Utility Shielding EM Shotgun EM Shotgun Spread Laser Powered Cannon Barrage Gun Improved Light Cannon Mining Laser Piercing Trap Scrap Shield Fragment (48) Peak State ------------ > --- POWER ------------ Ion Engine > --- PROPULSION ------- Aluminum Leg Aluminum Leg > --- UTILITY ---------- Heat Sink Large Storage Unit > --- WEAPON ----------- Light Assault Rifle Improved Light Cannon > --- INVENTORY -------- Light Ion Engine Subdweller Power Source Light Nuclear Core Experimental Sensor Array Terrain Scanner Utility Shielding EM Shotgun EM Shotgun Spread Laser Powered Cannon Improved Light Cannon Mining Laser Piercing Trap Scrap Shield Fragment [Rating: 12] Favorites ----------- Power Light Ion Engine Engine Light Ion Engine Propulsion Aluminum Leg Treads Light Treads Leg Aluminum Leg Utility Large Storage Unit Device Heat Sink Storage Large Storage Unit Weapon Light Assault Rifle Energy Gun EM Pulse Gun Ballistic Gun Light Assault Rifle Ballistic Cannon Improved Light Cannon Special Weapon Mining Laser Build | -11 -10 -10 -10 ------- Run | Yrd Mat Min Sub Slots Evolved . | . . . . Power . | . . . . Propulsion . | . . . . Utility . | . . . . Weapon . | . . . . Parts Attached 27 | 6 7 7 7 Power 6 | 1 1 2 2 Engine 6 | 1 1 2 2 Core . | . . . . Reactor . | . . . . Propulsion 6 | 2 . 2 2 Treads 2 | 2 . . . Leg 4 | . . 2 2 Wheel . | . . . . Hover . | . . . . Flight . | . . . . Utility 6 | 1 3 1 1 Device 3 | . 1 1 1 Storage 3 | 1 2 . . Processor . | . . . . Hackware . | . . . . Protection . | . . . . Artifact . | . . . . Weapon 9 | 2 3 2 2 Energy Gun 1 | 1 . . . Energy Cannon . | . . . . Ballistic Gun 5 | 1 3 . 1 Ballistic Cannon 2 | . . 1 1 Launcher . | . . . . Special Weapon 1 | . . 1 . Impact Weapon . | . . . . Slashing Weapon . | . . . . Piercing Weapon . | . . . . Special Melee Weapon . | . . . . Unidentified Prototypes . | . . . . Parts Lost 6 | . 1 3 2 Power 1 | . . . 1 Propulsion 2 | . . 2 . Utility 2 | . . 1 1 Weapon 1 | . 1 . . Highest Loss Streak 1 | . 1 1 1 To Critical Strikes 2 | . . . 2 Average Backups 11 | 1 7 12 12 Power 2 | . 3 3 2 Propulsion . | . . . 1 Utility 2 | . . 2 2 Weapon 5 | . 3 6 5 Tool/Special . | . . . . Unused Backups 16 | . 3 2 11 Power 5 | . 1 1 3 Propulsion 1 | . . 1 . Utility 3 | . . . 3 Weapon 6 | . 1 . 5 Tool/Special 1 | . 1 . . Average Slot Usage (%) 96 | . 91 96 99 Engine 13 | . 14 14 13 Treads 11 | . 28 16 . Leg 15 | . . 8 28 Device 12 | . 5 13 13 Storage 14 | . 14 14 14 Energy Gun 1 | . 9 . . Ballistic Gun 17 | . 18 20 14 Ballistic Cannon 8 | . . 4 14 Peak Build Rating 12 | 6 8 10 12 Average Rating 9 | 4 6 8 11 On Entrance 6 | . 6 8 10 Avg Prop Armor Cover (%) . | . . . . Naked Turns . | . . . . Heaviest Build 31 | 12 26 29 31 Greatest Support 40 | 40 40 40 20 Greatest Overweight (x) 9 | . . 9 1 Average Overweight (x) . | . . . 1 Largest Inventory Capacity 15 | 8 15 15 15 Average Capacity 13 | 6 9 15 15 Most Carried 15 | 5 10 15 15 Average Carried 12 | 1 7 12 14 Final Capacity 15 | 8 15 15 15 Final Carried 15 | 2 10 15 14 Class Distribution -------------------- 57% | Scavenger-Mutant 42% | Mutant Dominant Class ---------------- Mutant | -10/Materials Mutant | -10/Mines Scavenger-Mutant | -10/Subcaves Resources | -11 -10 -10 -10 ----------- Run | Yrd Mat Min Sub Matter Collected 953 | 217 127 215 394 Remotely . | . . . . Salvage Created 1107 | . 465 354 288 Parts 90 | . 43 18 29 Haulers Intercepted . | . . . . Recyclers Shooed 1 | . 1 . . Parts Field Recycled . | . . . . Retrieved Matter . | . . . . Parts Self-Destructed 1 | . . . 1 Prevented . | . . . . Parts Restored . | . . . . Kills | -11 -10 -10 -10 ------- Run | Yrd Mat Min Sub Combat Hostiles Destroyed 36 | . 15 9 12 Guns 26 | . 15 7 4 Cannons 10 | . . 2 8 Classes Destroyed 7 | . 4 2 1 Worker 1 | . . 1 . Builder 4 | . 2 2 . Recycler 2 | . 1 1 . Swarmer 12 | . 9 2 1 Grunt 12 | . 6 6 . Subdweller 11 | . . . 11 Assembled 1 | . . 1 . Best Kill Streak 7 | . 6 7 1 Combat Bots Only 6 | . 6 4 1 Max Kills in Single Turn 2 | . 2 1 1 Gunslinging 1 | . 1 . . Exploded . | . . . . Melee . | . . . . Uniques/NPCs Destroyed . | . . . . Combat | -11 -10 -10 -10 -------- Run | Yrd Mat Min Sub Hostile Shots Fired 214 | . 63 77 74 Missed 72 | . 12 23 37 Hits 142 | . 51 54 37 Projectile 142 | . 51 54 37 Critical Strikes 5 | . . 1 4 Damage Taken 1423 | . 361 501 561 Core 250 | . 37 128 85 Absorbed by Shields . | . . . . Ignored by Resistances 422 | . 120 145 157 Core Remaining (%) 100 | 100 . . . Volleys Fired 156 | . 28 48 80 Largest 2 | . 2 2 2 Hottest 120 | . 60 120 53 Shots Fired 310 | . 56 94 160 Gun 201 | . 56 65 80 Cannon 97 | . . 17 80 Launcher . | . . . . Special 12 | . . 12 . Kinetic 273 | . 31 82 160 Thermal 12 | . . 12 . Explosive . | . . . . Electromagnetic 25 | . 25 . . Robot Hit Streak 15 | . 9 15 13 Robot Miss Streak 2 | . 2 2 2 Penetration Max . | . . . . Secondary Targets 6 | . 6 . . Max Gunslinging Chain 1 | . 1 . . Shots Hit Robots 192 | . 35 60 97 Core Hits 75 | . 25 25 25 Critical Kills 1 | . . 1 . Critical Parts Destroyed 1 | . . 1 . Critical Strikes 5 | . 1 3 1 Destroy 2 | . . 2 . Blast 2 | . . 1 1 Corrupt 1 | . 1 . . Melee Attacks . | . . . . Impact . | . . . . Slashing . | . . . . Piercing . | . . . . Sneak Attacks . | . . . . Combat Hostiles . | . . . . Follow-up Attacks . | . . . . Damage Inflicted 2453 | . 559 618 1276 Guns 1041 | . 451 260 330 Cannons 1219 | . . 273 946 Explosions 95 | . 95 . . Melee . | . . . . Ramming 50 | . 13 37 . Kinetic 1986 | . 177 533 1276 Thermal 143 | . 95 48 . Explosive . | . . . . Electromagnetic 274 | . 274 . . Impact . | . . . . Slashing . | . . . . Piercing . | . . . . Highest Corruption 1 | . 1 1 1 Average Corruption 1 | . 1 1 1 Corruption Purged . | . . . . Corruption Blocked . | . . . . Effects 27 | . 1 11 15 Message Errors 8 | . . 4 4 Matter Fused 8 | . . 1 7 Heat Flow Errors 1 | . . . 1 Energy Discharges 5 | . . 4 1 Data Loss (minor) 4 | . 1 2 1 Alerts 1 | . . . 1 Overload Shots . | . . . . Overflow Damage . | . . . . Projectiles . | . . . . Explosions . | . . . . Melee . | . . . . Knockbacks 10 | . . 2 8 Impact . | . . . . Kinetic 10 | . . 2 8 Secondary . | . . . . Self-Inflicted Damage . | . . . . Shots . | . . . . Rammed 5 | . 2 3 . Targets Rammed 11 | . 4 7 . Kicked 3 | . . 3 . Crushed 3 | . 2 1 . Highest Temperature 112 | . 112 52 56 Average Temperature 33 | . 48 15 32 Received Heat Transfer 597 | . 144 297 156 Siege Activations . | . . . . Martial Activations . | . . . . Shielding Activations . | . . . . Robots Disrupted . | . . . . Combat Hostiles . | . . . . Robots Corrupted . | . . . . Combat Hostiles . | . . . . Parts Fried . | . . . . Impact Corruptions . | . . . . Robots Melted . | . . . . Combat Hostiles . | . . . . Parts Melted 1 | . 1 . . Heat Transferred 250 | . 150 100 . Parts Sabotaged . | . . . . Parts Stolen . | . . . . Parts Stripped . | . . . . Power Chain Reactions 2 | . 2 . . Alert | -11 -10 -10 -10 ------- Run | Yrd Mat Min Sub Maximum Alert Level . | . . . . Low Security (%) 100 | 100 100 100 . Level 1 . | . . . . Level 2 . | . . . . Level 3 . | . . . . Level 4 . | . . . . Level 5 . | . . . . High Security . | . . . . Max Security . | . . . . Peak Influence 140 | . 140 102 . Initial . | . . . . Average 28 | . 52 14 . Influence Increases 730 | . 393 317 20 Destroy 0b10 Robot/C 480 | . 300 160 20 Destroy 0b10 Robot/NC 35 | . 15 20 . Destroy Leader 80 | . 50 30 . Successful Hack 8 | . 8 . . Destroy Structure 7 | . 5 2 . Lose Combat Pursuer 120 | . 15 105 . Influence Decreases 710 | . 393 317 . Time Decay 690 | . 383 307 . Lost Part 20 | . 10 10 . Squads Dispatched 3 | . 3 . . Investigation 3 | . 3 . . Extermination . | . . . . Reinforcement . | . . . . Assault . | . . . . Garrison . | . . . . Intercept . | . . . . Searches Triggered . | . . . . Construction Impeded . | . . . . Haulers Reinforced . | . . . . Active Scanning Responses . | . . . . Cargo Convoy Interrupts . | . . . . Stealth | -11 -10 -10 -10 --------- Run | Yrd Mat Min Sub Distress Signals 1 | . 1 . . Communications Jammed . | . . . . Distress Signals . | . . . . Times Spotted 52 | . 24 15 13 Peak Tracking Total 5 | . 5 4 2 Tactical Retreats 7 | . 1 6 . Traps | -11 -10 -10 -10 ------- Run | Yrd Mat Min Sub Traps Triggered 4 | . 4 . . Indirectly . | . . . . Trap Hack Attempts . | . . . . Triggered . | . . . . Disarmed . | . . . . Reprogrammed . | . . . . Reused . | . . . . Traps Extracted . | . . . . Installed . | . . . . Triggered . | . . . . Most Traps Carried 1 | . . . 1 Machines | -11 -10 -10 -10 ---------- Run | Yrd Mat Min Sub Machines Disabled 1 | . . . 1 Max in Single Turn 1 | . . . 1 Machines Repaired . | . . . . Machines Dismantled . | . . . . Machines Sabotaged . | . . . . Overloaded Fab Kills . | . . . . Hacking | -11 -10 -10 -10 --------- Run | Yrd Mat Min Sub Machines Accessed 8 | . 7 . 1 Terminals 7 | . 7 . . Fabricators . | . . . . Repair Stations . | . . . . Recycling Units . | . . . . Scanalyzers . | . . . . Garrison Access . | . . . . Total Hacks 39 | . 30 . 9 Successful 29 | . 20 . 9 Failed 10 | . 10 . . Catastrophic 2 | . 2 . . Database Lockouts . | . . . . Manual . | . . . . Terminals 30 | . 30 . . Fabricators . | . . . . Repair Stations . | . . . . Recycling Units . | . . . . Scanalyzers . | . . . . Garrison Access . | . . . . Terminal Hacks 29 | . 20 . 9 Record 19 | . 11 . 8 Robot Analysis 1 | . 1 . . Prototype ID Bank 3 | . 3 . . Emergency Access Points 1 | . 1 . . Alert Level 2 | . 2 . . Zone Layout 2 | . 2 . . Proto ID Catalog 1 | . . . 1 Fabricator Hacks . | . . . . Repair Station Hacks . | . . . . Recycling Unit Hacks . | . . . . Scanalyzer . | . . . . Garrison Access Hacks . | . . . . Unauthorized Hacks . | . . . . Terminals . | . . . . Fabricators . | . . . . Repair Stations . | . . . . Recycling Units . | . . . . Scanalyzers . | . . . . Garrison Access . | . . . . Data Cores Recovered . | . . . . Used . | . . . . Hacking Detections 6 | . 6 . . Full Trace Events 3 | . 3 . . Feedback Events . | . . . . Feedback Blocked . | . . . . Robot Schematics Acquired . | . . . . Robots Built . | . . . . Authchips . | . . . . Time . | . . . . Total Robot Build Rating . | . . . . Part Schematics Acquired . | . . . . Parts Built . | . . . . Authchips . | . . . . Time . | . . . . Total Part Build Rating . | . . . . Part Studies Acquired . | . . . . Parts Repaired . | . . . . Time . | . . . . Parts Recycled . | . . . . Recycled Matter . | . . . . Retrieved Matter . | . . . . Retrieved Components . | . . . . Parts Scanalyzed . | . . . . Part Schematics Acquired . | . . . . Parts Damaged . | . . . . Bothacking | -11 -10 -10 -10 ------------ Run | Yrd Mat Min Sub Used RIF Installer . | . . . . Robots Hacked . | . . . . Non-combat . | . . . . Combat . | . . . . Robot Hacks Applied . | . . . . Relay Couplers Released . | . . . . Fabnet Peak Effective % . | . . . . Robots Rewired . | . . . . Allies Hacked . | . . . . Hacks Repelled . | . . . . Allies | -11 -10 -10 -10 -------- Run | Yrd Mat Min Sub Total Allies 2 | . . 2 . Largest Group 2 | . . 2 . Highest-Rated Group 46 | . . 46 . Highest-Rated Ally 31 | . . 31 . Total Orders . | . . . . Ally Attacks . | . . . . Total Damage . | . . . . Kills . | . . . . Allies Corrupted . | . . . . Allies Melted . | . . . . Intel | -11 -10 -10 -10 ------- Run | Yrd Mat Min Sub Active Infowar (turns) 305 | . . . 305 Terrain 305 | . . . 305 Robot Analysis Total 1 | . 1 . . Derelict Logs Recovered 3 | . . 2 1 Drone Launches . | . . . . Drone Recoveries . | . . . . Exploration | -11 -10 -10 -10 ------------- Run | Yrd Mat Min Sub Turns Passed 4997 | 70 999 1630 2298 Spaces Moved 2480 | 41 552 806 1081 Core 10 | 8 . 2 . Treads 1147 | 33 552 562 . Legs 1323 | . . 242 1081 Wheels . | . . . . Hover . | . . . . Flight . | . . . . Fastest Speed 50 | 50 160 160 190 Average Speed 178 | 138 160 179 190 Slowest Speed 500 | 160 160 500 190 Overloaded Moves . | . . . . Propulsion Burnouts . | . . . . Robots Hopped . | . . . . Potential Cave-ins . | . . . . Cave-ins Triggered . | . . . . Exploration Rate (%) 61 | 4 82 100 60 Regions Visited 3 Branch Regions 2 Pre-discovered Areas 2 | . . 2 . Known Exits Taken . | . . . . Unknown Exits Taken 3 | 1 1 1 . Scrap Searched 1 | . . 1 . Spaces Dug . | . . . . Terrain Destroyed 6 | . 4 2 . Melee . | . . . . Projectile 2 | . . 2 . AOE 4 | . 4 . . Terrain Rammed . | . . . . Walls Destroyed . | . . . . Machines Disabled . | . . . . Actions | -11 -10 -10 -10 --------- Run | Yrd Mat Min Sub Total 2740 | 54 617 885 1184 Wait 1 | . 1 . . Move 2477 | 40 551 805 1081 Hop . | . . . . Pick Up 46 | 8 18 13 7 Fast Attach . | . . . . Attach 14 | 6 3 3 2 Detach . | . . . . Swap 15 | . 4 4 7 Drop 20 | . 8 5 7 Fire 156 | . 28 48 80 Melee . | . . . . Ram . | . . . . Kick 3 | . . 3 . Crush 8 | . 4 4 . Escape Stasis . | . . . . Rewire . | . . . . Trap . | . . . . Miscellaneous . | . . . . Route ------- -11/Scrapyard -10/Materials (discovered 4 exits: [*Mat x3] / [*Min]) -10/Mines (discovered 3 exits: [*Mat x2] / *Sub) -10/Subcaves (discovered 1 exit: [*Mat]) History --------- Turn | Location | Event 19 | -11/Scrapyard | Discovered new exit (range 14) 71 | -11/Scrapyard | Entered Materials 300 | -10/Materials | Build established: Mutant 354 | -10/Materials | Discovered new exit (range 12) 542 | -10/Materials | Discovered new exit (range 15) 919 | -10/Materials | Discovered new exit (range 16) 1052 | -10/Materials | Discovered new exit (range 6) 1070 | -10/Materials | Entered Mines 1161 | -10/Mines | Build established: Scavenger-Mutant 1162 | -10/Mines | Learned Materials emergency access door positions 1269 | -10/Mines | Discovered new exit (range 6) 1425 | -10/Mines | Discovered new exit (range 9) 1487 | -10/Mines | Learned location of Storage (-9) 1612 | -10/Mines | Build established: Mutant 1640 | -10/Mines | Learned location of Mines (-9) 1875 | -10/Mines | Excavation squad dispatched 1875 | -10/Mines | A large section of the Mines collapsed 2113 | -10/Mines | Found a damaged Exp. Sensor Array with a note attached 2128 | -10/Mines | Found Prototype Device 2182 | -10/Mines | Core integrity fell below 50% 2379 | -10/Mines | Discovered new exit (range 5) 2517 | -10/Mines | Build established: Scavenger-Mutant 2700 | -10/Mines | Entered Subcaves 2763 | -10/Subcaves | Learned location of 1 exit from Materials 2808 | -10/Subcaves | Discovered new exit (range 9) 4317 | -10/Subcaves | A swath of the cavern ceiling suddenly collapsed 4343 | -10/Subcaves | A swath of the cavern ceiling suddenly collapsed 4549 | -10/Subcaves | Visited 4L-MR0's lab 4574 | -10/Subcaves | Found Powered Cannon 4646 | -10/Subcaves | Core integrity fell below 20% 4737 | -10/Subcaves | Shifting Twisted Machinery released Barrage Gun 4942 | -10/Subcaves | Build established: Mutant 4998 | -10/Subcaves | Destroyed by Y-45 Defender with Beam Rifle Last Messages --------------- 04717_ Acquired 4 matter. 04721_ Subatomizers dissect the Sub. Optics. 04723_ Acquired 12 matter. 04729_ Acquired 1 matter. 04733_ Subatomizers dissect the Sub. Optics. Barrage Gun falls loose from the Twisted Machinery. 04757_ Acquired Barrage Gun. 04832_ System corrupted: Matter fused (-7). 04855_ %RHSHSHIQ|C5PFN3ZGN7FPO/U=VNYT2XZHYRO 04899_ AJ-ODO(R) destroyed. 04916_ W7-VEW(R) affixes Scrap Shield Fragment to Scrap Shield. 04921_ W7-VEW(R) destroyed. 04924_ Acquired 4 matter. 04927_ Acquired 26 matter. 04931_ Acquired 24 matter. 04933_ Acquired 2 matter. 04987_ S-10 Pest destroyed. 04993_ Flight Unit fries itself beyond repair. Map ----- +----------------------------------------------------+ | ???????????# ## " #### | | ??? ????????# " ## """[##??## | | ????????????##" " ## "! #?#??## | | ? ????????#### " ####### ####!#???#?########## | | ???#??????### "#" "#????#####??###??????????????? | | ??#????##### ## ##?????#?????#????????#???????? | | ?????#???# #??#???#?????????????????????? | | #???#???### # # ##????????????#??#???????????? | | ???####### ""### #??#?????????????????????????? | | ?????# # #""" ##???#???#????????????????????? | | ##??## """"""" ##?????????????#???????????????? | | #???# """"""""##?????????????????????????????? | | ????## # # """##?????????#??????????????????? | | ????# ### """??#?##???????????????????????? | | ????## ##?# ###??#??#?????????????????????? | | # ??# #?# ##""#???????????#?????????????????? | | # ### #### """"##????????????????????????????? | | """ """"#" #?????##??????????????????????? | | / [ ! ## ##??#??????????????????????????? | | # !#*#" # #?#?#?????????????????????????? | | ## ##### #???????#?????????????????????? | | ?### ##???# ##??##?????????????????????????? | | ???# #?###?# ######?#??????????????????????????? | | ???# ## ## #### #####?##?????????????????????? | | ?### * # ## #?????????????????????? | | ??# # # @ #?????#???????????????? | | ??# ????# #### # ##????????#????????????? | | ??# ? ???# ##??### #??????????????????????? | | ??# ?????## ##????? ??????????????????????? | | ??###??????### ##?????? ??#??????????????????? | | ???#?????????# #????#??Y%[##????????????????????? | | ?????????????# ??????? % ??????????????????????? | | ???????#??? ? ?????? #?????????????????????? | | ?????????#?? ?????? ####?????????????????????? | | ??????????### ## ?????? ?????????????????????????? | | ????????????##?? ????? ?????????????????????????? | | ????????????????# ????# ? ??????????????????????? | | ????????????????? ????# ?????????????????????????? | | ????????????????? ????# ?????????????????????????? | | ?????????????????????? ??????????????????????????? | | ?????????????????????????????????????????????????? | | ?????????????????????????????????????????????????? | | ?????????????????????????????????????????????????? | | ?????????????????????????????????????????????????? | | ?????????????????????????????????????????????????? | | ?????????????????????????????????????????????????? | | ?????????????????????????????????????????????????? | | ???????????????????????????????????????????????? | | ???????????????????????????????????????????????? | | ??????????????????????????????????????????????? | +----------------------------------------------------+ Best States ------------- Heat Dissipation 35 Energy Generation 10 Energy Capacity 250 Matter Stores 300 Matter Capacity 300 Sight Range 16 Terrain Scan Range 14 Terrain Scan Density 10 Resistance: KI 20 Resistance: TH 20 Resistance: EX 20 Resistance: EM 20 Resistance: I 20 Resistance: S 20 Resistance: P 20 Evasion (%) 50 Recoil Reduction 2 Offensive Hacking 10 Item Schematics ----------------- None Robot Schematics ------------------ None Fabricated ------------ Nothing Repaired ---------- Nothing Studied --------- None Alien Tech Used ----------------- None Achievements -------------- Mistaken Identity Challenges ------------ None Game ------ Seed IntegratedUltimateHumpback Manual? 0 Play Time 00:20:08 Cumulative 272.0 hours Start 2025.12.06 @ 12:14:09 End 2025.12.06 @ 12:32:02 Sessions 1 Manual Loads 0 Difficulty Adventurer Special Mode None Game No. 69 Rogue 0 Adventurer 69 Explorer 0 Win Type - Total 1 Types 0/0/0/1/0/0/0/0/0/0 Lore% 52 Gallery% 58 Achievement% 42 Wizard Run 0 Options --------- Layout 1 ASCII 0 Keyboard 0 Movement Numpad Keybinds 0 Fullscreen 1 Font 24/Smallcaps Map View 50x35 Zoom Use 0% Tactical HUD 1 Map Filters NONE Filters NONE Steam 0 RUN: e63794f4-f0bf-4383-a15c-70ad2f596ef6